Cogmind - Beta 16 @@@ ROGUE MODE // 2026.01.06 @ 21:40:05 Player: Maxfecteau Result: Self-destructed Performance ------------- Evolutions (1) 500 Regions Visited (2) 400 Robots Destroyed (14) 70 Value Destroyed (210) 210 Prototype IDs (2) 40 Alien Tech Used (0) 0 Bonus (0) 0 TOTAL SCORE: 1220 Bonus ------- None Cogmind --------- Core Integrity 98/400 Matter 265/300 Energy 71/100 System Corruption 0% Temperature Cool (11) Movement Flying (120) Ox1 Location -9/Materials Parts ------- > --- POWER (1) -------- (None) > --- PROPULSION (2) --- Flight Unit > --- UTILITY (4) ------ Sensor Array Signal Interpreter Seismic Detector > --- WEAPON (2) ------- Heavy Hammer > --- INVENTORY (5) ---- Small Storage Unit Medium Armor Plating Mini Grenade Launcher Peak State ------------ > --- POWER ------------ (None) > --- PROPULSION ------- Flight Unit Flight Unit > --- UTILITY ---------- Sensor Array Signal Interpreter Seismic Detector > --- WEAPON ----------- Heavy Hammer > --- INVENTORY -------- Small Storage Unit Mini Grenade Launcher [Rating: 7] Favorites ----------- Power Light Ion Engine Engine Light Ion Engine Propulsion Flight Unit Flight Unit Flight Unit Utility Seismic Detector Device Seismic Detector Processor Signal Interpreter Weapon Heavy Hammer Ballistic Gun Assault Rifle Impact Weapon Heavy Hammer Build | -11 -10 -9 ------- Run | Yrd Mat Mat Slots Evolved 2 | . . 2 Power . | . . . Propulsion . | . . . Utility 2 | . . 2 Weapon . | . . . Parts Attached 11 | 3 1 7 Power 1 | 1 . . Engine 1 | 1 . . Core . | . . . Reactor . | . . . Propulsion 4 | . . 4 Treads . | . . . Leg . | . . . Wheel . | . . . Hover . | . . . Flight 4 | . . 4 Utility 4 | 1 . 3 Device 3 | 1 . 2 Storage . | . . . Processor 1 | . . 1 Hackware . | . . . Protection . | . . . Artifact . | . . . Weapon 2 | 1 1 . Energy Gun . | . . . Energy Cannon . | . . . Ballistic Gun 1 | 1 . . Ballistic Cannon . | . . . Launcher . | . . . Special Weapon . | . . . Impact Weapon 1 | . 1 . Slashing Weapon . | . . . Piercing Weapon . | . . . Special Melee Weapon . | . . . Unidentified Prototypes . | . . . Parts Lost 5 | . 1 4 Power 1 | . . 1 Propulsion 3 | . . 3 Utility 1 | . 1 . Weapon . | . . . Highest Loss Streak 2 | . 1 2 To Critical Strikes . | . . . Average Backups 3 | 1 4 4 Power . | . 1 . Propulsion . | . . . Utility 2 | . 3 3 Weapon . | . . . Tool/Special . | . . . Unused Backups 3 | . . 3 Power . | . . . Propulsion . | . . . Utility 2 | . . 2 Weapon 1 | . . 1 Tool/Special . | . . . Average Slot Usage (%) 26 | . 17 32 Engine 1 | . . 2 Flight 9 | . . 15 Device 3 | . 4 2 Impact Weapon 11 | . 11 11 Peak Build Rating 7 | 2 3 7 Average Rating 2 | 1 2 4 On Entrance 1 | . 2 2 Avg Prop Armor Cover (%) . | . . . Naked Turns . | . . . Heaviest Build 6 | 3 4 6 Greatest Support 8 | 3 3 8 Greatest Overweight (x) 1 | . 1 1 Average Overweight (x) . | . . . Largest Inventory Capacity 5 | 5 5 5 Average Capacity 5 | 5 5 5 Most Carried 5 | 3 5 5 Average Carried 3 | 1 4 4 Final Capacity 5 | 5 5 5 Final Carried 5 | 3 5 3 Class Distribution -------------------- 100% | Mutant Dominant Class ---------------- Mutant | -10/Materials Mutant | -9/Materials Resources | -11 -10 -9 ----------- Run | Yrd Mat Mat Matter Collected 324 | 275 14 35 Remotely . | . . . Salvage Created 264 | 58 34 172 Parts 24 | 14 . 10 Haulers Intercepted . | . . . Recyclers Shooed . | . . . Parts Field Recycled . | . . . Retrieved Matter . | . . . Parts Self-Destructed . | . . . Prevented . | . . . Parts Restored . | . . . Kills | -11 -10 -9 ------- Run | Yrd Mat Mat Combat Hostiles Destroyed 10 | . 3 7 Melee 6 | . 1 5 Classes Destroyed 3 | 1 1 1 Tunneler 4 | 4 . . Swarmer 7 | . 3 4 Grunt 3 | . . 3 Best Kill Streak 4 | 2 2 4 Combat Bots Only 4 | . 2 4 Max Kills in Single Turn 1 | 1 1 1 Gunslinging . | . . . Exploded . | . . . Melee 1 | . 1 1 Uniques/NPCs Destroyed . | . . . Combat | -11 -10 -9 -------- Run | Yrd Mat Mat Hostile Shots Fired 106 | . 31 75 Missed 50 | . 14 36 Hits 56 | . 17 39 Projectile 56 | . 17 39 Critical Strikes 3 | . . 3 Damage Taken 623 | . 149 474 Core 406 | . 104 302 Absorbed by Shields . | . . . Core Remaining (%) 79 | 100 58 . Volleys Fired 18 | 18 . . Largest 1 | 1 . . Hottest 20 | 20 . . Shots Fired 18 | 18 . . Gun 18 | 18 . . Cannon . | . . . Launcher . | . . . Special . | . . . Kinetic 18 | 18 . . Thermal . | . . . Explosive . | . . . Electromagnetic . | . . . Robot Hit Streak 8 | 8 . . Robot Miss Streak 2 | 2 . . Penetration Max . | . . . Secondary Targets . | . . . Shots Hit Robots 32 | 15 6 11 Core Hits 9 | 4 1 4 Critical Kills 1 | . . 1 Critical Parts Destroyed 3 | 1 1 1 Critical Strikes 4 | 1 1 2 Destroy 1 | 1 . . Smash 3 | . 1 2 Melee Attacks 25 | . 12 13 Impact 25 | . 12 13 Slashing . | . . . Piercing . | . . . Sneak Attacks . | . . . Combat Hostiles . | . . . Follow-up Attacks . | . . . Damage Inflicted 893 | 184 214 495 Guns 184 | 184 . . Cannons . | . . . Explosions . | . . . Melee 709 | . 214 495 Ramming . | . . . Kinetic 184 | 184 . . Thermal . | . . . Explosive . | . . . Electromagnetic . | . . . Impact 709 | . 214 495 Slashing . | . . . Piercing . | . . . Highest Corruption . | . . . Average Corruption . | . . . Corruption Purged . | . . . Corruption Blocked . | . . . Overload Shots . | . . . Overflow Damage 206 | . 86 120 Projectiles . | . . . Explosions . | . . . Melee 206 | . 86 120 Knockbacks . | . . . Impact . | . . . Kinetic . | . . . Secondary . | . . . Self-Inflicted Damage . | . . . Shots . | . . . Rammed . | . . . Targets Rammed . | . . . Kicked . | . . . Crushed . | . . . Highest Temperature 7 | . . 7 Average Temperature 4 | . . 4 Received Heat Transfer 210 | . 27 183 Siege Activations . | . . . Martial Activations . | . . . Shielding Activations . | . . . Robots Disrupted . | . . . Combat Hostiles . | . . . Robots Corrupted 4 | . 2 2 Combat Hostiles 4 | . 2 2 Parts Fried 2 | . 1 1 Impact Corruptions 10 | . 4 6 Robots Melted . | . . . Combat Hostiles . | . . . Parts Melted . | . . . Heat Transferred . | . . . Parts Sabotaged . | . . . Parts Stolen . | . . . Parts Stripped . | . . . Power Chain Reactions . | . . . Alert | -11 -10 -9 ------- Run | Yrd Mat Mat Maximum Alert Level . | . . . Low Security (%) 100 | 100 100 100 Level 1 . | . . . Level 2 . | . . . Level 3 . | . . . Level 4 . | . . . Level 5 . | . . . High Security . | . . . Max Security . | . . . Peak Influence 140 | 10 70 140 Initial 16 | . . 16 Average 45 | 1 44 73 Influence Increases 465 | 20 100 345 Destroy 0b10 Robot/C 200 | . 60 140 Destroy 0b10 Robot/NC 20 | 20 . . Destroy Leader 30 | . 10 20 Successful Hack 5 | . . 5 Disable Machine 15 | . 15 . Lose Combat Pursuer 195 | . 15 180 Influence Decreases 355 | 20 60 275 Entered New Map 24 | . . 24 Time Decay 160 | 20 50 90 Lost Part 50 | . 10 40 Purge Threat 121 | . . 121 Squads Dispatched 4 | . 1 3 Investigation 2 | . . 2 Extermination . | . . . Reinforcement 2 | . 1 1 Assault . | . . . Garrison . | . . . Intercept . | . . . Searches Triggered . | . . . Construction Impeded . | . . . Haulers Reinforced . | . . . Active Scanning Responses . | . . . Cargo Convoy Interrupts . | . . . Stealth | -11 -10 -9 --------- Run | Yrd Mat Mat Distress Signals 2 | . . 2 Communications Jammed . | . . . Distress Signals . | . . . Times Spotted 41 | . 11 30 Peak Tracking Total 11 | . 7 11 Tactical Retreats 6 | . 1 5 Traps | -11 -10 -9 ------- Run | Yrd Mat Mat Traps Triggered . | . . . Indirectly . | . . . Trap Hack Attempts . | . . . Triggered . | . . . Disarmed . | . . . Reprogrammed . | . . . Reused . | . . . Traps Extracted . | . . . Installed . | . . . Triggered . | . . . Machines | -11 -10 -9 ---------- Run | Yrd Mat Mat Machines Disabled 1 | . 1 . Max in Single Turn 1 | . 1 . Machines Repaired . | . . . Machines Dismantled . | . . . Machines Sabotaged . | . . . Overloaded Fab Kills . | . . . Hacking | -11 -10 -9 --------- Run | Yrd Mat Mat Machines Accessed 6 | . 2 4 Terminals 6 | . 2 4 Fabricators . | . . . Repair Stations . | . . . Recycling Units . | . . . Scanalyzers . | . . . Garrison Access . | . . . Total Hacks 16 | . 3 13 Successful 4 | . 1 3 Failed 12 | . 2 10 Catastrophic 3 | . 1 2 Database Lockouts . | . . . Manual 3 | . 3 . Terminals 16 | . 3 13 Fabricators . | . . . Repair Stations . | . . . Recycling Units . | . . . Scanalyzers . | . . . Garrison Access . | . . . Terminal Hacks 4 | . 1 3 Robot Analysis 1 | . 1 . Prototype ID Bank 1 | . . 1 Branch Access Points 1 | . . 1 Unreport Threat 1 | . . 1 Fabricator Hacks . | . . . Repair Station Hacks . | . . . Recycling Unit Hacks . | . . . Scanalyzer . | . . . Garrison Access Hacks . | . . . Unauthorized Hacks . | . . . Terminals . | . . . Fabricators . | . . . Repair Stations . | . . . Recycling Units . | . . . Scanalyzers . | . . . Garrison Access . | . . . Data Cores Recovered . | . . . Used . | . . . Hacking Detections 6 | . 2 4 Full Trace Events 2 | . . 2 Feedback Events . | . . . Feedback Blocked . | . . . Robot Schematics Acquired . | . . . Robots Built . | . . . Authchips . | . . . Time . | . . . Total Robot Build Rating . | . . . Part Schematics Acquired . | . . . Parts Built . | . . . Authchips . | . . . Time . | . . . Total Part Build Rating . | . . . Part Studies Acquired . | . . . Parts Repaired . | . . . Time . | . . . Parts Recycled . | . . . Recycled Matter . | . . . Retrieved Matter . | . . . Retrieved Components . | . . . Parts Scanalyzed . | . . . Part Schematics Acquired . | . . . Parts Damaged . | . . . Bothacking | -11 -10 -9 ------------ Run | Yrd Mat Mat Used RIF Installer . | . . . Robots Hacked . | . . . Non-combat . | . . . Combat . | . . . Robot Hacks Applied . | . . . Relay Couplers Released . | . . . Fabnet Peak Effective % . | . . . Robots Rewired . | . . . Allies Hacked . | . . . Hacks Repelled . | . . . Allies | -11 -10 -9 -------- Run | Yrd Mat Mat Total Allies . | . . . Largest Group . | . . . Highest-Rated Group . | . . . Highest-Rated Ally . | . . . Total Orders . | . . . Ally Attacks . | . . . Total Damage . | . . . Kills . | . . . Allies Corrupted . | . . . Allies Melted . | . . . Intel | -11 -10 -9 ------- Run | Yrd Mat Mat Active Infowar (turns) 88 | 36 27 25 Sensors 25 | . . 25 Seismic 64 | 36 27 1 Robot Analysis Total 1 | . 1 . Derelict Logs Recovered . | . . . Drone Launches . | . . . Drone Recoveries . | . . . Exploration | -11 -10 -9 ------------- Run | Yrd Mat Mat Turns Passed 406 | 112 107 187 Spaces Moved 561 | 115 133 313 Core 341 | 115 133 93 Treads . | . . . Legs . | . . . Wheels . | . . . Hover . | . . . Flight 220 | . . 220 Fastest Speed 37 | 50 50 37 Average Speed 45 | 50 51 41 Slowest Speed 120 | 50 100 120 Overloaded Moves . | . . . Propulsion Burnouts . | . . . Robots Hopped . | . . . Potential Cave-ins . | . . . Cave-ins Triggered . | . . . Exploration Rate (%) 24 | 5 40 28 Regions Visited 2 Branch Regions . Pre-discovered Areas . | . . . Known Exits Taken . | . . . Unknown Exits Taken 2 | 1 1 . Scrap Searched . | . . . Spaces Dug . | . . . Terrain Destroyed . | . . . Melee . | . . . Projectile . | . . . AOE . | . . . Terrain Rammed . | . . . Walls Destroyed . | . . . Machines Disabled . | . . . Actions | -11 -10 -9 --------- Run | Yrd Mat Mat Total 644 | 150 150 344 Wait 18 | 11 . 7 Move 559 | 114 132 313 Hop . | . . . Pick Up 9 | 3 3 3 Fast Attach 5 | 2 . 3 Attach 7 | 1 1 5 Detach 2 | 1 1 . Swap . | . . . Drop 1 | . 1 . Fire 18 | 18 . . Melee 25 | . 12 13 Ram . | . . . Kick . | . . . Crush . | . . . Escape Stasis . | . . . Rewire . | . . . Trap . | . . . Miscellaneous . | . . . Route ------- -11/Scrapyard -10/Materials -9/Materials (discovered 4 exits: [*Mat] / Min / *Sto x2) History --------- Turn | Location | Event 8 | -11/Scrapyard | Discovered new exit (range 16) 113 | -11/Scrapyard | Entered Materials 215 | -10/Materials | Discovered new exit (range 8) 220 | -10/Materials | Entered another Materials area 220 | -9/Materials | Evolved 2 slots: Utility x2 253 | -9/Materials | Discovered new exit (range 9) 324 | -9/Materials | Build established: Mutant 330 | -9/Materials | Core integrity fell below 50% 350 | -9/Materials | Discovered new exit (range 3) 386 | -9/Materials | Identified exit to Mines 386 | -9/Materials | Identified exit to Storage 407 | -9/Materials | Self-destructed Last Messages --------------- 00345_ Critical hit (Burn: +37). 00347_ Acquired Flight Unit. 00348_ Critical hit (Burn: +37). 00350_ EXIT=FOUND 00365_ T-07 Excavator is excavating. 00374_ U-05 Engineer lays Concrete. 00381_ Acquired Mni. Grenade Launcher. 00382_ K-01 Serf cleans the Nuclear Reactor. 00386_ K-01 Serf collects debris. 00386_ Connecting with Terminal... >>Access(Branch) Found 3 branch access points: (49,48) Mines (15,72) Storage (79,81) Storage Map updated. 00386_ ALERT: Suspicious activity at Terminal M007. Dispatching Investigation squad. 00388_ Acquired Med. Armor Plating. 00407_ Flight Unit destroyed. Map ----- +----------------------------------------------------+ | | | | | ?????????????????????????????????????????????????? | | ?????????????????????????????????????????????????? | | ?????????????????????????????????????????????????? | | ???????????????????????????????######????????????? | | ???????????????????????????????# ####?????????? | | ???????????????????????????????# " ??????????? | | ??????????????????#####????????? ???????????? | | ?????????????????? #????????? #????????????? | | ?????????????#???"" ########### #?????????????? | | ?########????# """ # T # #?????????????? | | ?# #????# """ # """ + #?????????????? | | ?# """ #????# # """ # #?????????????? | | ## """ #????# """ # """ # #?????????????? | | # """ #????# """ # # #?????????????? | | # #????# """ # # #?????????????? | | #[ ??????# ########### #?????????????? | | ###+#############+############## # #??????????? | | x x #??????????? | | ####### ##??????????? | | X #??????##???????????? | | ################### #####+##???????????????????? | | ??????????????????# # #???????????????????? | | ??????????????????# k # #???????????????????? | | ??????????????????# Y @ #???????????????????? | | ??????????? Y # r""" #???????????????????? | | ????????? # """ #???????????????????? | | ?????????? # """ #???????????????????? | | ????????????############+#####???????????????????? | | ???????????????????????# #???????????????????????? | | ???????????????????????# #???????????????????????? | | ???????????????????????# #???????????????????????? | | ???????????????????????#x#???????????????????????? | | ???????????????????????#x#???????????????????????? | | ???????????????????????# #???????????????????????? | | ???????????????????????# #???????????????????????? | | ???????????????????????# #???????????????????????? | | ???????????????????????#x#???????????????????????? | | ???????????????????????# #???????????????????????? | | ???????????????????????# #???????????????????????? | | ???????????????????????# ???????????????????????? | | ???????????????????????? ???????????????????????? | | ???????????????????????? ???????????????????????? | | ???????????????????????? ???????????????????????? | | ???????????????????????? ???????????????????????? | | ???????????????????????? ???????????????????????? | | ???????????????????????? ???????????????????????? | | ???????????????????????? ???????????????????????? | | ?????????????????????????????????????????????????? | +----------------------------------------------------+ Best States ------------- Heat Dissipation 28 Energy Generation 10 Energy Capacity 125 Matter Stores 300 Matter Capacity 300 Sight Range 16 Robot Scan Range 14 Terrain Scan Density 10 Evasion (%) 62 Item Schematics ----------------- None Robot Schematics ------------------ None Fabricated ------------ Nothing Repaired ---------- Nothing Studied --------- None Alien Tech Used ----------------- None Achievements -------------- None Challenges ------------ None Game ------ Seed SpectralTowerDrivehammer Manual? 0 Play Time 00:09:06 Cumulative 78.3 hours Start 2026.01.06 @ 21:31:41 End 2026.01.06 @ 21:40:05 Sessions 1 Manual Loads 0 Difficulty Rogue Special Mode None Game No. 38 Rogue 38 Adventurer 0 Explorer 0 Win Type - Total 1 Types 1/0/0/0/0/0/0/0/0/0 Lore% 45 Gallery% 43 Achievement% 34 Wizard Run 0 Options --------- Layout 0 ASCII 0 Keyboard 1 Movement Arrows Keybinds 0 Fullscreen 2 Font 18/SmallcapsGlow Map View 76x50 Zoom Use 0% Tactical HUD 1 Map Filters NONE Filters NONE Steam 1 RUN: 3554ef42-01dd-4e1e-a4b8-67e5bbed98cf